bitfinex/quotes_ETHUSD_20240621
["timestamp","ask_amount","ask_price","bid_price","bid_amount"]
[1718997963142,0.55,3529.3,3527.7,2.793193]
[1718997963342,3.55,3529.3,3527.7,2.793193]
[1718997968306,3.55,3529.3,3527.7,2.3331]
[1718997969023,3.5,3529.3,3527.7,2.3331]
[1718997969231,5.208,3529.3,3527.7,2.3331]
[1718997969471,2.086,3529.0,3527.7,2.3331]
[1718997969779,3.0348,3528.9,3527.7,2.3331]
[1718997969931,3.51208,3528.8,3527.7,2.3331]
[1718997970134,0.55,3528.7,3527.7,2.3331]
[1718997970952,36.280143,3528.6,3527.3,2.3861]
[1718997971147,3.0,3528.5,3527.3,2.3861]
[1718997971469,1.1136,3528.4,3527.3,2.3861]
[1718997971661,5.86,3528.5,3527.3,2.3861]
[1718997971828,2.86,3528.5,3527.3,2.3861]
[1718997972029,3.0,3528.4,3527.3,2.3861]
[1718997972267,2.086,3528.2,3526.6,2.315]
[1718997972559,0.55,3528.1,3526.6,2.315]
[1718997972859,3.55,3528.1,3526.6,2.315]
[1718997973826,3.5,3528.1,3526.6,2.315]
[1718997974028,0.89333,3528.0,3526.7,0.2315]
[1718997975880,0.89333,3528.0,3526.6,2.2015]
[1718997976033,0.55,3527.9,3526.6,2.2015]
[1718997978769,2.086,3527.1,3525.4,0.29533214]
[1718997978942,2.086,3527.1,3524.8,3.0]
[1718997978943,3.0461,3527.0,3524.8,2.2981]
[1718997979342,3.0,3526.9,3524.8,2.2981]
[1718997981691,3.0,3526.9,3525.1,2.2669]
[1718997981858,3.0,3526.9,3525.3,2.2669]
[1718997984844,2.667,3526.9,3525.3,2.2669]
[1718997985953,2.667,3526.9,3525.2,0.453646]
[1718997985954,2.667,3526.9,3525.6,2.086]
[1718997986194,2.3313,3527.4,3525.7,2.4246]
[1718997986484,2.3313,3527.8,3526.1,2.4246]
[1718997989446,3.0,3527.9,3526.1,4.69339]
[1718997989848,3.0,3527.9,3526.1,2.4246]
[1718997990550,3.0,3527.9,3526.1,4.69339]
[1718997990851,3.0,3527.9,3526.2,0.46337102]
[1718997992655,1.16851965,3528.0,3526.2,0.46337102]
[1718997993483,1.16851965,3528.0,3526.2,2.73209102]
[1718997993811,1.16851965,3528.0,3526.2,0.46337102]
[1718997997424,1.16851965,3528.0,3526.3,2.4201]
[1718997997704,1.16851965,3528.0,3526.4,0.453646]
[1718998000628,1.16851965,3528.0,3526.5,2.3068]
[1718998002691,5.86,3528.1,3526.6,2.3973]
[1718998003392,6.13564753,3528.1,3526.6,2.3973]
[1718998004254,3.27564753,3528.1,3526.6,2.3973]
[1718998004413,3.0,3528.0,3526.6,2.3973]
[1718998004649,3.0,3528.5,3526.6,2.3973]
[1718998004849,1.09477,3528.4,3526.6,2.8909946]
[1718998005028,0.55,3528.4,3526.6,2.8909946]
[1718998006748,3.0,3528.5,3527.0,2.4681]
[1718998006950,0.2816803,3528.6,3527.0,2.4681]
[1718998007256,3.0,3528.8,3527.0,2.4681]
[1718998007465,2.3527,3528.9,3527.0,2.4681]
[1718998007835,2.31095945,3529.2,3527.1,2.266]
[1718998008135,0.51353594,3529.1,3527.3,2.266]
[1718998009125,0.55,3529.0,3527.3,2.266]
[1718998011969,2.86,3528.8,3527.7,2.3283]
[1718998012134,3.51353594,3529.1,3527.8,0.44143]
[1718998012336,0.51353594,3529.1,3527.8,0.44143]
[1718998016778,0.51353594,3529.1,3527.9,2.4134]
[1718998018291,3.51353594,3529.1,3527.9,2.4134]
[1718998019666,3.0,3529.1,3527.9,2.4134]
[1718998020075,0.28506428,3529.2,3527.9,2.4134]
[1718998020281,3.0,3529.6,3527.9,2.4134]
[1718998020457,0.55,3529.5,3527.9,2.4134]
[1718998020657,3.0,3529.6,3527.9,2.4134]
[1718998020870,1.45697133,3529.5,3528.1,2.3742]
[1718998021068,4.45697133,3529.5,3528.1,2.3742]
[1718998021380,7.31697133,3529.5,3528.1,2.3742]
[1718998021587,3.0,3529.5,3528.1,2.3742]
[1718998021788,3.28909647,3529.6,3528.1,2.3742]
[1718998024180,0.28909647,3529.6,3528.1,2.3742]
[1718998024383,3.0,3529.8,3528.1,2.3742]
[1718998024680,0.586,3529.7,3528.3,2.2687]
[1718998030105,0.55,3529.6,3528.3,2.2687]
[1718998030708,0.586,3529.7,3528.3,2.2687]
[1718998031563,0.586,3529.7,3528.7,2.4918]
[1718998031763,0.869,3529.7,3528.8,0.869]
[1718998031974,0.869,3529.7,3528.9,2.4918]
[1718998035501,0.869,3529.5,3528.9,2.4918]
[1718998035721,0.61471212,3529.7,3528.9,2.4918]
[1718998035893,0.869,3529.6,3528.9,2.4918]
[1718998039350,3.28712116,3529.8,3528.9,2.4918]
[1718998039652,4.15612116,3529.8,3529.0,0.33608]
[1718998039842,0.869,3529.6,3528.9,2.4918]
[1718998040328,3.28712116,3529.8,3528.9,2.4918]
[1718998040534,4.15612116,3529.8,3528.9,2.4918]
[1718998040694,4.15612116,3529.8,3528.9,3.3608]
[1718998040895,0.70161212,3529.7,3528.9,3.3608]
[1718998041670,3.28712116,3529.8,3529.1,0.869]
[1718998042381,3.28712116,3529.8,3528.9,3.3608]
[1718998043252,3.28712116,3529.8,3528.9,2.4918]
[1718998043428,0.869,3529.5,3528.9,2.4918]
[1718998043631,18.390901,3529.4,3528.9,2.4918]
[1718998043966,6.96951897,3529.3,3528.9,2.4918]
[1718998044169,0.869,3529.5,3528.9,2.4918]
[1718998044336,16.551211,3529.4,3528.9,2.4918]
[1718998044667,0.869,3529.2,3528.9,2.4918]
[1718998044871,3.748365,3529.1,3527.6,2.3074]
[1718998045168,0.869,3528.8,3528.0,2.3074]
[1718998045529,3.0,3529.6,3528.1,3.1764]
[1718998045761,0.869,3529.0,3528.2,2.3074]
[1718998047945,0.869,3528.8,3528.2,2.3074]
[1718998048334,0.869,3528.6,3528.2,2.3074]
[1718998048578,0.869,3528.4,3527.8,2.3436]
[1718998048733,0.869,3528.2,3527.8,2.3436]
[1718998049255,3.0,3528.7,3527.8,2.3436]
[1718998049256,0.869,3528.4,3527.8,2.3436]
[1718998049456,3.0,3528.7,3527.8,2.3436]
[1718998049756,1.82818,3528.6,3527.8,2.3436]
[1718998050795,1.27818,3528.6,3527.8,2.3436]
[1718998052375,1.27818,3528.6,3527.0,2.3298]
[1718998052910,3.0,3528.7,3527.0,2.3298]
[1718998053098,0.55,3528.6,3527.0,2.3298]
[1718998053394,3.55,3528.7,3527.0,2.3298]
[1718998054359,3.217,3528.7,3527.0,2.3298]
[1718998054565,3.0,3528.7,3527.0,2.3298]
[1718998054872,0.55411981,3528.6,3527.2,2.2834]
[1718998055073,3.55411981,3528.6,3527.2,2.2834]
[1718998060302,3.0,3528.6,3527.2,2.2834]
[1718998060489,3.28213344,3528.8,3527.2,2.2834]
[1718998060700,4.99639806,3528.9,3527.2,2.2834]
[1718998060915,3.55,3528.8,3527.2,2.2834]
[1718998061203,5.11689981,3528.8,3527.4,2.4839]
[1718998061612,3.0,3528.8,3527.4,2.4839]
[1718998062420,0.04939806,3528.9,3527.4,2.4839]
[1718998063179,0.33072707,3528.9,3527.6,2.2749]
[1718998063385,0.33072707,3528.9,3527.8,2.2749]
[1718998063700,0.33072707,3528.9,3527.9,2.31361702]
[1718998064726,0.33072707,3528.9,3527.9,2.2749]
[1718998065804,0.28132901,3528.9,3527.9,2.2749]
[1718998066006,2.087,3528.6,3527.9,2.2749]
[1718998066170,29.74862013,3528.5,3527.9,2.2749]
[1718998066390,19.37086063,3528.4,3527.9,2.2749]
[1718998066736,13.913711,3528.3,3527.9,2.2749]
[1718998066890,3.0,3528.2,3527.9,2.2749]
[1718998067234,9.53142668,3528.2,3527.9,2.2749]
[1718998067425,3.173461,3528.1,3527.9,2.2749]
[1718998067643,3.0,3528.0,3527.1,2.3729]
[1718998067793,3.0,3528.0,3527.3,2.3729]
[1718998067992,2.087,3528.6,3527.3,2.3729]
[1718998069531,0.87,3527.8,3527.3,2.3729]
[1718998070488,0.87,3527.8,3527.4,0.23729]
[1718998072346,0.87,3527.8,3527.3,2.3729]
[1718998072563,0.87,3527.6,3527.3,2.3729]
[1718998074143,4.705,3528.4,3527.3,2.3729]
[1718998074316,0.55,3528.5,3527.3,2.3729]
[1718998074317,0.87,3527.4,3527.3,2.3729]
[1718998074515,6.174146,3527.4,3527.3,2.3729]
[1718998074752,3.87,3527.4,3527.3,2.3729]
[1718998074918,0.87,3527.4,3527.3,2.3729]
[1718998075641,3.0,3528.1,3527.3,2.3729]
[1718998075835,0.87,3527.6,3527.3,2.3729]
[1718998076542,0.28837587,3528.5,3527.3,2.3729]
[1718998076748,0.87,3527.8,3527.3,2.3729]
[1718998078252,5.28565684,3528.7,3527.3,2.3729]
[1718998078433,0.87,3527.7,3527.3,2.3729]
[1718998078853,2.86,3528.4,3527.3,2.3729]
[1718998079047,0.87,3527.8,3527.3,2.3729]
[1718998081623,3.0,3528.6,3527.3,2.3729]
[1718998081950,0.87,3527.8,3527.3,2.3729]
[1718998082963,4.53726156,3528.6,3527.3,2.3729]
[1718998083122,0.87,3527.8,3527.3,2.3729]
[1718998086983,0.87,3527.9,3527.3,2.3729]
[1718998087139,1.58661042,3528.6,3527.5,2.2953]
[1718998087140,0.87,3528.1,3527.5,2.2953]
[1718998087333,0.537,3528.1,3527.5,2.2953]
[1718998087541,4.53726156,3528.6,3527.5,2.2953]
[1718998087753,4.53726156,3528.6,3527.5,2.52483]
[1718998087754,0.537,3528.1,3527.5,2.52483]
[1718998088543,0.55,3528.0,3527.5,2.52483]
[1718998089334,0.87,3527.9,3527.5,2.52483]
[1718998089577,0.87,3527.9,3527.5,2.2953]
[1718998090577,0.55,3528.0,3527.5,2.2953]
[1718998090741,0.87,3528.1,3527.5,2.2953]
[1718998091567,3.0,3528.6,3527.5,2.2953]
[1718998091774,0.87,3528.3,3527.7,2.3281]
[1718998094196,0.87,3528.1,3527.7,2.3281]
[1718998095778,0.87,3527.9,3527.7,2.3281]
[1718998096287,0.55,3527.8,3527.7,2.3281]
[1718998096507,0.55,3527.8,3526.6,2.3716]
[1718998096731,0.55,3527.8,3527.0,2.3716]
[1718998097072,0.87,3527.5,3527.0,2.3716]
[1718998097456,0.55,3527.8,3527.0,2.3716]
[1718998097457,0.87,3527.1,3527.0,2.3716]
[1718998097746,6.41689,3527.1,3526.3,2.2759]
[1718998097872,3.0,3527.0,3526.4,0.31459]
[1718998098369,0.87,3527.2,3526.4,0.31459]
[1718998099220,0.87,3527.0,3526.4,0.31459]
[1718998100480,0.87,3527.0,3526.3,2.2759]
[1718998100481,0.87,3526.5,3526.3,2.2759]
[1718998100678,2.737555,3526.4,3525.1,7.44]
[1718998100994,3.87,3526.3,3525.5,2.4422]
[1718998101177,0.55,3526.9,3525.5,2.68642]
[1718998101380,0.87,3526.4,3525.5,2.68642]
[1718998101601,0.55,3526.3,3525.5,2.68642]
[1718998103306,0.55,3526.3,3525.6,0.87]
[1718998103512,0.55,3526.3,3525.6,1.225642]
[1718998103734,0.55,3526.3,3525.6,0.355642]
[1718998104523,3.0,3526.9,3525.6,0.355642]
[1718998104847,0.87,3526.6,3525.6,2.349]
[1718998106042,0.87,3526.4,3525.6,2.349]
[1718998106439,0.55,3526.8,3525.6,2.349]
[1718998106612,0.87,3526.5,3525.6,2.349]
[1718998106820,0.55,3526.4,3525.6,2.349]
[1718998108545,0.87,3526.3,3525.6,2.349]
[1718998110928,0.55,3526.2,3525.6,2.349]
[1718998112027,0.55,3526.3,3525.6,2.349]
[1718998113571,1.42,3526.3,3525.6,2.349]
[1718998116258,0.142,3526.2,3525.6,2.349]
[1718998116848,0.55,3526.3,3525.6,2.349]
[1718998117073,0.87,3526.2,3525.6,2.349]
[1718998128721,0.28782896,3526.4,3525.6,2.349]
[1718998128914,0.55,3526.6,3525.6,2.349]
[1718998128915,0.87,3526.2,3525.6,2.349]
[1718998129292,0.87,3526.3,3525.6,2.349]
[1718998129492,0.55,3526.2,3525.6,2.349]
[1718998129691,0.87,3526.4,3525.6,2.6709]
[1718998129888,10.29,3526.9,3526.0,0.87]
[1718998130178,10.29,3526.9,3524.3,2.26989]
[1718998130179,3.0,3526.9,3526.2,0.87]
[1718998130378,3.0,3526.9,3526.3,2.4839]
[1718998130600,3.0,3526.8,3526.3,2.4839]
[1718998131119,3.0,3527.0,3526.3,2.4839]
[1718998131298,3.0,3527.0,3526.3,3.3539]
[1718998132241,3.0,3527.0,3526.3,3.68929]
[1718998132727,3.0,3527.0,3526.4,2.444]
[1718998133251,3.0,3527.0,3526.6,2.3745]
[1718998134564,1.42,3526.9,3526.3,2.3745]
[1718998134704,0.442,3526.8,3526.3,2.3745]
[1718998135049,0.55,3526.7,3526.3,2.3745]
[1718998135365,0.55,3526.8,3526.3,2.3745]
[1718998140822,0.55,3526.9,3526.3,2.3745]
[1718998141218,1.25925697,3526.9,3526.3,2.3745]
[1718998142056,0.55,3526.9,3526.3,2.3745]
[1718998142209,3.0,3527.4,3526.8,2.2875]
[1718998142404,1.85922522,3528.0,3526.9,0.87]
[1718998142649,0.87,3527.8,3526.9,0.87]
[1718998142850,1.68386252,3527.9,3526.9,0.87]
[1718998143151,0.87,3527.8,3526.9,0.87]
[1718998143345,1.68386252,3527.9,3526.9,0.87]
[1718998143519,1.42,3527.8,3526.9,0.87]
[1718998143837,2.70832625,3527.8,3526.8,2.2875]
[1718998144046,3.0,3527.7,3526.8,2.2875]
[1718998144241,0.55,3527.6,3526.8,2.2875]
[1718998144418,1.42,3527.6,3526.8,2.2875]
[1718998147994,0.55,3527.6,3526.9,0.87]
[1718998150142,0.55,3527.6,3527.1,0.87]
[1718998150345,0.55,3527.6,3526.8,2.2875]
[1718998150683,1.31983263,3527.6,3527.0,0.87]
[1718998151599,3.0,3527.7,3527.2,0.87]
[1718998152804,3.0,3527.7,3527.5,0.87]
[1718998153088,3.0,3527.7,3527.6,2.3656]
[1718998153254,3.0,3528.0,3527.6,2.3656]
[1718998157902,2.99845937,3528.0,3527.6,2.3656]
[1718998158301,0.28543028,3528.1,3527.6,2.3656]
[1718998158464,0.55,3528.0,3527.6,2.3656]
[1718998158888,0.55,3528.2,3527.6,2.3656]
[1718998159763,0.87,3528.4,3527.6,2.3656]
[1718998160005,3.27975381,3528.6,3527.9,0.87]
[1718998160158,3.27975381,3528.6,3527.1,2.26814]
[1718998160159,3.0,3528.6,3528.2,0.87]
[1718998160362,7.29,3529.1,3528.2,0.87]
[1718998160559,0.82082067,3529.0,3528.2,0.87]
[1718998160754,0.87,3529.2,3528.3,2.499]
[1718998160956,0.87,3529.0,3528.3,2.499]
[1718998161394,2.83737436,3529.5,3528.3,2.499]
[1718998161565,0.87,3528.9,3528.3,2.499]
[1718998163098,0.55,3528.8,3528.3,2.499]
[1718998166123,0.87,3528.7,3528.0,2.3633]
[1718998166414,0.55,3528.6,3528.0,2.3633]
[1718998168398,0.692,3528.6,3528.0,2.3633]
[1718998170862,3.0,3529.2,3528.0,2.3633]
[1718998171011,3.0,3529.3,3528.0,2.3633]
[1718998171216,0.87,3528.9,3528.0,2.3633]
[1718998174125,3.0,3529.3,3528.0,2.3633]
[1718998174324,0.87,3528.8,3528.0,2.3633]
[1718998175125,0.87,3528.6,3528.0,2.3633]
[1718998175560,2.4933,3528.8,3527.2,0.87]
[1718998175561,0.87,3528.1,3527.2,0.87]
[1718998175720,0.87,3528.1,3527.3,2.2501]
[1718998176160,0.87,3528.3,3527.4,0.87]
[1718998179328,0.87,3528.3,3527.3,3.1201]
[1718998180635,0.87,3528.1,3527.3,2.2501]
[1718998181139,0.87,3527.5,3526.1,2.3354]
[1718998181341,0.87,3527.5,3526.7,2.3354]
[1718998182070,3.87,3527.5,3526.7,2.3354]
[1718998183646,3.0,3527.5,3526.7,2.3354]
[1718998183840,0.87,3527.5,3526.7,2.3354]
[1718998187671,0.87,3527.3,3526.7,2.3354]
[1718998187889,0.87,3527.1,3526.7,2.3354]
[1718998188846,3.0,3527.6,3526.7,2.3354]
[1718998189049,0.87,3527.1,3526.7,2.3354]
[1718998190379,0.87,3527.4,3526.7,2.3354]
[1718998191153,1.1900541,3527.5,3526.7,2.3354]
[1718998191371,0.87,3527.1,3525.6,2.3577]
[1718998191676,0.87,3526.9,3526.0,2.3577]
[1718998191918,0.87,3526.9,3526.0,2.68047]
[1718998193620,0.87,3526.7,3526.0,2.68047]
[1718998193915,0.87,3526.7,3526.0,2.3577]
[1718998195096,5.3141,3527.3,3526.0,2.3577]
[1718998195315,0.87,3526.8,3526.0,2.3577]
[1718998197734,3.0,3527.1,3526.0,2.3577]
[1718998197917,0.87,3526.7,3526.0,2.3577]
[1718998198224,0.87,3526.5,3526.0,2.3577]
[1718998200147,0.87,3526.6,3526.0,2.3577]
[1718998201036,3.0,3527.0,3526.1,2.4306]
[1718998201037,0.87,3526.9,3526.1,2.4306]
[1718998202907,0.87144667,3527.2,3526.1,2.4306]
[1718998203119,0.87,3526.9,3526.1,2.4306]
[1718998203545,0.75346206,3527.4,3526.1,3.3006]
[1718998203758,2.86,3527.1,3526.1,2.3439]
[1718998203916,0.2781003,3527.8,3526.9,2.3439]
[1718998204111,3.73,3527.9,3527.0,0.9178558]
[1718998205537,2.86,3527.9,3527.0,0.0478558]
[1718998205743,3.0,3527.8,3527.0,0.28703138]
[1718998206158,3.0,3527.8,3527.1,2.32295444]
[1718998209274,0.28511163,3527.9,3527.1,2.32295444]
[1718998209457,3.0,3528.4,3527.1,2.32295444]
[1718998210320,5.86,3528.4,3527.1,2.32295444]
[1718998210514,3.0,3528.4,3527.1,2.32295444]
[1718998210756,5.67265616,3528.4,3527.2,2.72859544]
[1718998210972,5.67265616,3528.4,3527.3,0.0479203]
[1718998211168,3.28835972,3528.4,3527.4,2.341]
[1718998211386,3.28835972,3528.4,3527.2,0.23229544]
[1718998211387,0.28835972,3528.4,3527.6,2.341]
[1718998211545,2.86,3528.8,3527.6,2.341]
[1718998212393,2.86,3528.9,3527.6,2.341]
[1718998212661,2.86,3528.9,3527.8,2.4409]
[1718998213200,3.0,3528.8,3527.8,2.4409]
[1718998215807,5.088,3529.3,3528.0,2.4131]
[1718998216079,0.55,3529.2,3528.0,2.4131]
[1718998216290,0.74960812,3529.1,3528.0,2.4131]
[1718998216453,0.55,3529.0,3528.0,2.4131]
[1718998217966,3.0,3529.2,3528.3,2.26736]
[1718998218173,3.0,3529.4,3528.5,2.3547]
[1718998218373,3.0,3529.8,3528.7,2.3547]
[1718998218703,3.0,3529.8,3528.6,2.78605031]
[1718998218704,3.0,3529.8,3528.9,2.4402]
[1718998223169,3.27895672,3529.9,3528.9,2.4402]
[1718998223498,3.0,3529.9,3529.2,2.473]
[1718998223704,3.0,3530.5,3529.4,2.473]
[1718998223857,5.83822075,3531.0,3529.4,2.473]
[1718998224064,0.55,3530.9,3529.4,2.473]
[1718998224278,1.21997844,3530.8,3529.4,2.473]
[1718998224497,0.55,3530.7,3529.4,2.473]
[1718998228891,2.86,3530.8,3529.5,2.4613]
[1718998229078,3.0,3530.7,3529.7,2.4613]
[1718998229284,0.27962797,3531.0,3529.8,2.088]
[1718998229480,7.29,3531.1,3529.9,2.4613]
[1718998231003,3.0,3531.0,3529.9,2.4613]
[1718998232817,3.0,3531.4,3529.9,2.4613]
[1718998233010,0.55,3531.3,3530.0,2.75673]
[1718998233278,0.55,3531.3,3530.0,2.3018]
[1718998233418,2.86,3530.9,3530.0,2.3018]
[1718998233721,3.0,3530.8,3530.2,2.299]
[1718998233894,3.0,3531.4,3530.4,2.299]
[1718998234821,0.2886854,3531.5,3530.4,2.299]
[1718998234981,2.86,3531.8,3530.4,2.299]
[1718998235181,0.55,3531.7,3530.4,2.299]
[1718998235423,2.86,3531.8,3530.6,2.299]
[1718998236319,2.86,3531.8,3530.5,2.34145646]
[1718998236320,2.86,3531.8,3530.7,2.2631]
[1718998236633,3.0,3531.7,3530.7,2.2631]
[1718998236940,7.29,3532.5,3530.7,2.2631]
[1718998237121,0.96881,3532.4,3530.9,2.2631]
[1718998238461,3.96881,3532.4,3530.9,2.2631]
[1718998238931,5.86,3532.4,3531.0,2.2737]
[1718998239081,7.29,3532.5,3531.0,2.2737]
[1718998239288,0.28971306,3532.7,3531.0,2.2737]
[1718998239598,2.86,3532.9,3531.0,2.2737]
[1718998239815,0.7813,3532.8,3531.2,2.4538]
[1718998240420,3.7813,3532.8,3531.2,2.4538]
[1718998240752,3.0,3532.7,3531.2,2.4538]
[1718998240898,3.0,3532.8,3531.3,2.2801]
[1718998241093,3.28824286,3532.9,3531.3,2.2801]
[1718998241295,0.82412429,3532.8,3531.3,2.2801]
[1718998242293,0.55,3532.7,3531.3,2.2801]
[1718998243490,0.82412429,3532.8,3531.3,2.2801]
[1718998243698,3.28824286,3532.9,3531.3,2.2801]
[1718998243930,0.55,3532.8,3531.3,2.2801]
[1718998252452,2.86,3532.7,3531.3,2.2801]
[1718998252761,3.55,3532.6,3531.3,2.2801]
[1718998253946,2.088,3532.5,3531.3,2.2801]
[1718998254150,1.81364,3532.4,3531.3,2.2801]
[1718998254315,4.81364,3532.4,3531.3,2.2801]
[1718998255171,3.55,3532.4,3531.3,2.2801]
[1718998255355,3.0,3532.4,3531.4,2.3757357]
[1718998255557,2.088,3532.5,3531.4,2.3757357]
[1718998255734,2.088,3532.5,3531.4,2.3192]
[1718998260967,5.088,3532.5,3531.4,2.3192]
[1718998261140,0.53842229,3532.4,3531.4,2.3192]
[1718998261334,3.0,3532.4,3531.4,2.3192]
[1718998261557,0.55,3532.3,3531.4,2.3192]
[1718998262064,2.62724286,3532.9,3531.4,2.3192]
[1718998262065,0.0543308,3533.0,3531.4,2.3192]
[1718998262267,0.005,3533.0,3531.4,2.3192]
[1718998262516,0.2143,3533.0,3531.6,2.4091]
[1718998263573,2.088,3532.8,3531.6,2.4091]
[1718998263773,0.2143,3533.0,3531.6,2.4091]
[1718998263774,2.088,3532.3,3531.6,2.4091]
[1718998263982,15.512236,3532.2,3531.6,2.4091]
[1718998264178,1.7600236,3532.1,3531.6,2.4091]
[1718998264468,12.665328,3532.0,3531.6,2.4091]
[1718998264687,3.0,3531.9,3531.6,2.4091]
[1718998264870,6.422714,3531.8,3531.6,2.4091]
[1718998265169,3.0,3531.7,3531.6,2.4091]
[1718998265470,5.737678,3531.7,3531.6,2.4091]
[1718998266349,6.3114458,3531.7,3531.3,2.3558]
[1718998266551,12.20402,3531.6,3531.3,2.3558]
[1718998266762,3.0,3531.5,3531.3,2.3558]
[1718998266968,3.409055,3531.4,3531.3,2.3558]
[1718998267179,3.409055,3531.4,3529.8,2.26641]
[1718998267180,6.186342,3531.4,3529.8,7.44]
[1718998267481,3.0,3531.3,3529.4,2.26666]
[1718998268075,3.0,3531.7,3529.4,2.26666]
[1718998268479,3.0,3531.7,3529.3,2.088]
[1718998268779,3.0,3531.7,3529.0,2.088]
[1718998268780,2.088,3531.4,3529.0,2.088]
[1718998268984,0.55,3531.3,3529.0,4.35486]
[1718998269189,3.55,3531.3,3529.0,4.35492]
[1718998269674,3.55,3531.3,3529.1,2.26685]
[1718998269897,0.5638,3531.2,3529.3,2.2667]
[1718998270052,0.5638,3531.2,3529.2,0.53521765]
[1718998270254,0.5638,3531.2,3529.3,2.4218]
[1718998270442,0.5638,3531.2,3529.5,2.4218]
[1718998270798,0.56518,3531.1,3529.5,2.4218]
[1718998271096,0.5635696,3531.1,3529.5,2.4218]
[1718998271449,3.0,3531.5,3529.5,2.4218]
[1718998271655,0.55,3531.4,3529.5,2.4218]
[1718998271849,3.55,3531.5,3529.5,2.4218]
[1718998272085,0.55,3531.5,3529.5,2.4218]
[1718998272286,0.59222,3531.4,3529.7,2.4216]
[1718998272461,0.55,3531.3,3529.7,2.4216]
[1718998272656,6.2354,3531.2,3529.3,3.13729177]
[1718998272862,2.088,3530.7,3529.3,2.4216]
[1718998273269,0.55,3530.6,3529.3,2.4216]
[1718998273591,2.4424,3530.5,3529.3,2.4216]
[1718998273887,0.80804,3530.4,3529.3,2.4216]
[1718998274389,3.80804,3530.4,3529.3,2.4216]
[1718998274798,0.80804,3530.4,3529.3,2.4216]
[1718998275903,0.80804,3530.4,3528.1,7.44]
[1718998275904,2.638,3530.3,3528.1,7.44]
[1718998276084,2.638,3530.3,3528.3,2.3351]
[1718998276085,3.344604,3530.2,3528.3,2.3351]
[1718998276250,0.55,3530.1,3528.3,2.3351]
[1718998276897,5.678104,3530.2,3528.4,2.3351]
[1718998278252,0.55,3530.1,3528.4,2.3351]
[1718998278457,0.8316104,3530.0,3528.5,0.23351]
[1718998280245,0.8316104,3530.0,3528.4,2.3351]
[1718998280246,2.088,3529.5,3528.4,2.3351]
[1718998280498,2.088,3529.5,3527.3,2.2628]
[1718998280701,0.55,3529.4,3527.3,2.2628]
[1718998280866,4.1138,3529.4,3527.4,0.43508]
[1718998281358,4.1138,3529.4,3527.5,2.2504]
[1718998281911,4.1138,3529.4,3527.6,2.2504]
[1718998282196,3.0,3529.4,3527.7,2.2766]
[1718998282390,3.0,3529.7,3527.7,4.54433]
[1718998283592,3.0,3529.7,3527.8,2.4708]
[1718998283782,3.74005557,3529.7,3528.0,2.4708]
[1718998283984,3.0,3529.7,3528.1,2.4708]
[1718998284153,2.3499,3529.8,3528.1,2.4708]
[1718998284964,0.55,3529.7,3528.1,2.4708]
[1718998285182,3.55,3529.7,3528.1,2.4708]
[1718998285364,1.09879,3529.6,3528.2,0.3153453]
[1718998291915,3.55,3529.7,3528.3,2.2814]
[1718998291916,3.0,3529.7,3528.3,2.2814]
[1718998292072,0.28484545,3529.8,3528.3,2.2814]
[1718998292258,3.8316104,3530.0,3528.3,2.2814]
[1718998292462,0.55,3529.9,3528.3,2.2814]
[1718998292766,0.55,3529.9,3528.4,2.57442453]
[1718998292967,3.0,3530.0,3528.8,2.2814]
[1718998293188,3.0,3530.1,3528.8,2.2814]
[1718998293399,3.0,3530.1,3528.9,0.454858]
[1718998293603,5.4935,3530.5,3529.0,0.05666065]
[1718998295673,5.77310028,3530.5,3529.0,0.05666065]
[1718998296085,5.77310028,3530.5,3528.9,0.454858]
[1718998296276,1.59231003,3530.4,3529.0,0.2736258]
[1718998296476,4.59231003,3530.4,3529.0,0.2736258]
[1718998297114,4.59231003,3530.4,3529.1,2.3986]
[1718998297115,3.0,3530.4,3529.1,2.3986]
[1718998297318,2.088,3530.9,3529.3,4.35473]
[1718998297319,2.86,3530.9,3529.3,4.35473]
[1718998297476,2.377,3531.1,3529.4,2.3986]
[1718998297813,0.2377,3531.0,3529.4,2.84726]
[1718998298917,0.55,3530.9,3529.4,2.84726]
[1718998299075,3.55,3530.9,3529.4,2.84726]
[1718998299610,3.0,3530.8,3529.4,2.84726]
[1718998299782,0.55,3530.9,3529.6,2.3017]
[1718998300407,3.2377,3531.0,3529.7,2.28176231]
[1718998300577,3.0,3531.0,3529.9,2.2544]
[1718998300772,0.28944295,3531.1,3530.0,0.015301]
[1718998301020,3.0,3531.4,3530.0,0.015301]
[1718998301188,5.4467,3531.5,3530.0,0.015301]
[1718998301390,1.48247,3531.4,3530.0,0.015301]
[1718998301603,4.48247,3531.4,3530.1,2.2544]
[1718998301779,4.48247,3531.4,3530.2,0.01530013]
[1718998302693,2.86,3531.2,3530.2,0.01530013]
[1718998302879,3.734247,3531.1,3530.2,0.01530013]